bitfinex-derivatives/quotes_BTCF0:USTF0_20250329
["timestamp","ask_amount","ask_price","bid_price","bid_amount"]
[1743244508276,0.53749121,83310.0,83309.0,0.2787326]
[1743244508969,0.53849121,83310.0,83309.0,0.2787326]
[1743244511283,0.53949121,83310.0,83309.0,0.2787326]
[1743244512170,0.53949121,83310.0,83309.0,0.00064]
[1743244512370,0.53949121,83310.0,83309.0,0.1200926]
[1743244512571,0.53949121,83310.0,83309.0,0.1207326]
[1743244513371,0.53849121,83310.0,83309.0,0.00064]
[1743244513576,0.53849121,83310.0,83309.0,0.1200926]
[1743244513879,0.53949121,83310.0,83309.0,0.1207726]
[1743244514081,0.53849121,83310.0,83309.0,0.1207726]
[1743244514269,0.53949121,83310.0,83309.0,0.1207726]
[1743244514869,0.53849121,83310.0,83309.0,0.1207726]
[1743244515084,0.54049121,83310.0,83309.0,0.1207726]
[1743244515971,0.54049121,83310.0,83309.0,0.1724726]
[1743244516678,0.42040001,83310.0,83309.0,0.1724726]
[1743244516977,0.53949121,83310.0,83309.0,0.18778953]
[1743244517181,0.54049121,83310.0,83309.0,0.18778953]
[1743244517483,0.53949121,83310.0,83309.0,0.18778953]
[1743244518085,0.53849121,83310.0,83309.0,0.18778953]
[1743244518383,0.53749121,83310.0,83309.0,0.18779396]
[1743244518780,0.53749121,83310.0,83309.0,0.1724726]
[1743244518983,0.53749121,83310.0,83309.0,0.00068]
[1743244519169,0.1200998,83305.0,83304.0,0.1200994]
[1743244519372,0.12129981,83305.0,83304.0,0.1738194]
[1743244519577,0.22639981,83305.0,83304.0,0.1738194]
[1743244521779,0.22739981,83305.0,83304.0,0.1738194]
[1743244523886,0.22739981,83305.0,83304.0,0.00072]
[1743244524482,0.22739981,83305.0,83304.0,0.1757198]
[1743244525786,0.22739981,83305.0,83304.0,0.05562]
[1743244527283,0.22739981,83305.0,83304.0,0.00072]
[1743244527684,0.22739981,83305.0,83304.0,0.1208198]
[1743244528486,0.22739981,83305.0,83304.0,0.1761198]
[1743244528976,0.00220001,83305.0,83304.0,0.1761198]
[1743244529293,0.00220001,83305.0,83304.0,0.4776198]
[1743244529480,0.001,83305.0,83304.0,0.4776198]
[1743244529881,0.001,83305.0,83304.0,0.4931376]
[1743244531091,0.1200974,83306.0,83305.0,0.1200984]
[1743244531291,0.1200974,83306.0,83305.0,0.3863362]
[1743244531495,0.14260682,83313.0,83310.0,0.1200883]
[1743244531793,0.14380683,83313.0,83312.0,0.1200883]
[1743244531983,0.14380683,83313.0,83312.0,0.2262461]
[1743244532185,0.14380683,83313.0,83312.0,0.3325461]
[1743244532385,0.12128691,83313.0,83312.0,0.2425461]
[1743244532683,0.00120001,83313.0,83312.0,0.2425461]
[1743244533097,0.00017997,83316.0,83315.0,0.120084]
[1743244533283,0.12026247,83316.0,83315.0,0.1356018]
[1743244533591,0.00137998,83316.0,83315.0,0.1362418]
[1743244533890,0.00017997,83316.0,83315.0,0.3762418]
[1743244534490,0.00317997,83316.0,83315.0,0.3762418]
[1743244534800,0.12326247,83316.0,83315.0,0.3762418]
[1743244534986,0.12446248,83316.0,83315.0,0.1362418]
[1743244535588,0.23116248,83316.0,83315.0,0.1362418]
[1743244535890,0.23116248,83316.0,83315.0,0.42413143]
[1743244536295,0.23316248,83316.0,83315.0,0.42409151]
[1743244536591,0.17866248,83316.0,83315.0,0.42409151]
[1743244536786,0.17746247,83316.0,83315.0,0.42409151]
[1743244536988,0.00517997,83316.0,83315.0,0.40861363]
[1743244541093,0.00517997,83316.0,83315.0,0.120724]
[1743244541891,0.12526247,83316.0,83315.0,0.120724]
[1743244542098,0.12646248,83316.0,83315.0,0.120724]
[1743244544490,0.12646248,83316.0,83315.0,0.231724]
[1743244544795,0.00637998,83316.0,83315.0,0.231724]
[1743244545002,0.00517997,83316.0,83315.0,0.231724]
[1743244545495,0.00517997,83316.0,83315.0,0.491724]
[1743244550297,0.3608,83323.0,83322.0,0.1200739]
[1743244550605,0.48207241,83323.0,83322.0,0.1207139]
[1743244550798,0.36200001,83323.0,83322.0,0.1207139]
[1743244551002,0.48207241,83323.0,83322.0,0.1207139]
[1743244551301,0.48207241,83323.0,83322.0,0.2250139]
[1743244551494,0.00120001,83323.0,83322.0,0.2250139]
[1743244551694,0.00620001,83323.0,83322.0,0.2250139]
[1743244551893,0.01020001,83323.0,83322.0,0.2250139]
[1743244552092,0.06190001,83323.0,83322.0,0.2250139]
[1743244552703,0.11360001,83323.0,83322.0,0.2250139]
[1743244552900,0.06190001,83323.0,83322.0,0.2250139]
[1743244553909,0.01020001,83323.0,83322.0,0.2250139]
[1743244554295,0.06190001,83323.0,83322.0,0.2250139]
[1743244555405,0.18197241,83323.0,83322.0,0.2250139]
[1743244556407,0.18197241,83323.0,83322.0,0.1207139]
[1743244556995,0.06190001,83323.0,83322.0,0.1207139]
[1743244557396,0.18197241,83323.0,83322.0,0.1746139]
[1743244557600,0.23697241,83323.0,83322.0,0.1746139]
[1743244558607,0.11690001,83323.0,83322.0,0.1746139]
[1743244559009,0.11690001,83323.0,83322.0,0.2290139]
[1743244559507,0.11690001,83323.0,83322.0,0.3090139]
[1743244559508,0.01020001,83323.0,83322.0,0.3090139]
[1743244559910,0.01020001,83323.0,83322.0,0.3210011]
[1743244560906,0.01020001,83323.0,83322.0,0.3090139]
[1743244562905,0.01020001,83323.0,83322.0,0.6698139]
[1743244563110,0.009,83323.0,83322.0,0.6698139]
[1743244563813,0.009,83323.0,83322.0,0.7935739]
[1743244564614,0.1156,83323.0,83322.0,0.7935739]
[1743244564811,0.1106,83323.0,83322.0,0.7935739]
[1743244565006,0.1066,83323.0,83322.0,0.7965739]
[1743244565407,0.22787241,83323.0,83322.0,0.7965739]
[1743244565607,0.22787241,83323.0,83322.0,0.7945739]
[1743244565811,0.22787241,83323.0,83322.0,0.7955739]
[1743244566515,0.10780001,83323.0,83322.0,0.7955739]
[1743244567211,0.22787241,83323.0,83322.0,0.7155739]
[1743244567601,0.10780001,83323.0,83322.0,0.7155739]
[1743244567799,0.1066,83323.0,83322.0,0.7155739]
[1743244568213,0.12024099,83331.0,83330.0,0.1200624]
[1743244568403,0.12024099,83331.0,83330.0,0.1207424]
[1743244568404,0.176981,83331.0,83330.0,0.1207424]
[1743244568604,0.0569201,83331.0,83330.0,0.1207424]
[1743244569607,0.0569201,83331.0,83330.0,0.4317424]
[1743244569813,0.05568009,83331.0,83330.0,0.4317424]
[1743244570115,0.05568009,83331.0,83330.0,0.4825424]
[1743244570308,0.10878009,83331.0,83330.0,0.4825424]
[1743244570817,0.10978009,83331.0,83330.0,0.4825424]
[1743244571115,0.11178009,83331.0,83330.0,0.4825424]
[1743244571315,0.11178009,83331.0,83330.0,0.2225424]
[1743244571617,0.11306009,83331.0,83330.0,0.2225424]
[1743244575916,0.11178009,83331.0,83330.0,0.2225424]
[1743244576225,0.1129801,83331.0,83330.0,0.2225424]
[1743244576430,0.11178009,83331.0,83330.0,0.2225424]
[1743244576615,0.1129801,83331.0,83330.0,0.2225424]
[1743244577122,0.1129801,83331.0,83330.0,0.4525424]
[1743244577326,0.11178009,83331.0,83330.0,0.4525424]
[1743244578215,0.1129801,83331.0,83330.0,0.4525424]
[1743244579325,0.11178009,83331.0,83330.0,0.4525424]
[1743244582222,0.11178009,83331.0,83330.0,0.74027041]
[1743244583422,0.11178009,83331.0,83330.0,0.75214567]
[1743244584228,0.05868009,83331.0,83330.0,0.75214567]
[1743244584431,0.0541,83346.0,83343.0,0.1200436]
[1743244584625,0.00120001,83344.0,83343.0,0.1807048]
[1743244584933,0.00120001,83344.0,83343.0,0.4107048]
[1743244585233,0.01182972,83346.0,83345.0,0.1200407]
[1743244585426,0.00120001,83346.0,83345.0,0.1206807]
[1743244586325,0.10780001,83346.0,83345.0,0.2312807]
[1743244586931,0.11180001,83346.0,83345.0,0.2312807]
[1743244587328,0.11680001,83346.0,83345.0,0.2312807]
[1743244588830,0.23683931,83346.0,83345.0,0.2312807]
[1743244589128,0.11680001,83346.0,83345.0,0.2312807]
[1743244589522,0.06480001,83346.0,83345.0,0.2312807]
[1743244590329,0.0636,83346.0,83345.0,0.2312807]
[1743244590733,0.00017998,83354.0,83353.0,0.1200292]
[1743244590925,0.00137999,83354.0,83353.0,0.1200292]
[1743244591130,0.00137999,83354.0,83353.0,0.1206692]
[1743244592234,0.00137999,83354.0,83353.0,0.2307692]
[1743244592432,0.00737999,83354.0,83353.0,0.2307692]
[1743244592625,0.01237999,83354.0,83353.0,0.2317692]
[1743244593021,0.01237999,83354.0,83353.0,0.52375596]
[1743244593435,0.01117998,83354.0,83353.0,0.52375596]
[1743244598752,0.01117998,83354.0,83353.0,0.88455596]
[1743244599557,0.00717998,83354.0,83353.0,0.88455596]
[1743244599747,0.0535,83357.0,83356.0,0.1200249]
[1743244599949,0.0535,83357.0,83356.0,0.5242649]
[1743244600859,0.0535,83357.0,83356.0,0.8850649]
[1743244601356,0.0555,83357.0,83356.0,0.8850649]
[1743244601558,0.0555,83357.0,83356.0,0.5242649]
[1743244601757,0.0585,83357.0,83356.0,0.8850649]
[1743244603649,0.0585,83357.0,83356.0,0.5242649]
[1743244603850,0.0585,83357.0,83356.0,0.8850649]
[1743244605355,0.0585,83357.0,83356.0,0.4814649]
[1743244606061,0.0585,83357.0,83356.0,0.1206649]
[1743244606261,0.11474001,83357.0,83356.0,0.1206649]
[1743244606459,0.1135,83357.0,83356.0,0.1206649]
[1743244606856,0.11466,83357.0,83356.0,0.1206649]
[1743244607258,0.12679588,83357.0,83356.0,0.1206649]
[1743244607466,0.12563588,83357.0,83356.0,0.1206649]
[1743244608760,0.12563588,83357.0,83356.0,0.1770649]
[1743244609063,0.12679588,83357.0,83356.0,0.1770649]
[1743244609367,0.12563588,83357.0,83356.0,0.1770649]
[1743244609562,0.12679588,83357.0,83356.0,0.1770649]
[1743244609966,0.24681938,83357.0,83356.0,0.1206649]
[1743244611071,0.11466,83357.0,83356.0,0.1206649]
[1743244611266,0.1135,83357.0,83356.0,0.1206649]
[1743244611456,0.2346835,83357.0,83356.0,0.1206649]
[1743244612269,0.24689633,83357.0,83356.0,0.1206649]
[1743244615063,0.24689633,83357.0,83356.0,0.00064]
[1743244615064,0.37041633,83357.0,83356.0,0.00064]
[1743244615263,0.1200307,83352.0,83351.0,0.2150497]
[1743244615467,0.4819907,83352.0,83351.0,0.2156497]
[1743244615668,0.64413517,83352.0,83351.0,0.2156497]
[1743244616169,0.74843517,83352.0,83351.0,0.2156497]
[1743244617269,0.1200364,83348.0,83342.0,0.35937103]
[1743244617469,0.1200364,83348.0,83347.0,0.0006]
[1743244617470,0.61786087,83348.0,83347.0,0.0006]
[1743244617670,0.61786087,83348.0,83346.0,0.20499377]
[1743244617671,0.1200379,83347.0,83346.0,0.20499377]
[1743244617871,0.23464237,83347.0,83346.0,0.20559377]
[1743244618066,0.38464237,83347.0,83346.0,0.14557753]
[1743244618270,0.1200451,83342.0,83341.0,0.35937103]
[1743244618469,0.49450957,83342.0,83341.0,0.35937103]
[1743244618675,0.64450957,83342.0,83341.0,0.35937103]
[1743244618968,0.64298957,83342.0,83341.0,0.35937103]
[1743244619177,0.74548957,83342.0,83341.0,0.35937103]
[1743244619668,0.74648957,83342.0,83341.0,0.35937103]
[1743244620370,0.74848957,83342.0,83341.0,0.27743605]
[1743244620965,0.74848957,83342.0,83341.0,0.25643605]
[1743244621365,0.7363451,83342.0,83341.0,0.25643605]
[1743244622872,0.7363451,83342.0,83341.0,0.21823606]
[1743244623179,0.7363451,83342.0,83322.0,0.1200732]
[1743244623180,0.120071,83324.0,83322.0,0.1200732]
[1743244623770,0.121591,83324.0,83322.0,0.1200732]
[1743244623963,0.229391,83324.0,83322.0,0.1200732]
[1743244624277,0.229391,83324.0,83319.0,0.00011218]
[1743244624573,0.24145786,83324.0,83323.0,0.00348006]
[1743244624969,0.25032531,83324.0,83323.0,0.00348006]
[1743244625181,0.1200782,83319.0,83315.0,0.00017998]
[1743244625386,0.1170825,83316.0,83315.0,0.00017998]
[1743244625674,0.11864251,83316.0,83315.0,0.00017998]
[1743244626271,0.11864251,83316.0,83307.0,0.00048015]
[1743244626272,0.1200941,83308.0,83307.0,0.00048015]
[1743244626470,0.4824141,83308.0,83307.0,0.00048015]
[1743244626675,0.120107,83299.0,83298.0,0.1023]
[1743244627175,0.479907,83299.0,83298.0,0.1023]
[1743244627370,0.481427,83299.0,83298.0,0.1023]
[1743244627771,0.481427,83299.0,83298.0,0.1083]
[1743244628075,0.477427,83299.0,83298.0,0.1083]
[1743244628578,0.1171085,83298.0,83297.0,0.17044606]
[1743244628876,0.2228285,83298.0,83297.0,0.17044606]
[1743244629081,0.2228285,83298.0,83290.0,0.00017998]
[1743244629082,0.1201142,83294.0,83293.0,0.0499]
[1743244629279,0.13390385,83294.0,83293.0,0.0499]
[1743244629675,0.13390385,83294.0,83290.0,0.00017998]
[1743244629676,0.1171171,83292.0,83290.0,0.00017998]
[1743244629876,0.4779171,83292.0,83290.0,0.00017998]
[1743244630073,0.4794371,83292.0,83290.0,0.00017998]
[1743244630274,0.5845371,83292.0,83290.0,0.00017998]
[1743244630766,0.7080571,83292.0,83290.0,0.00017998]
[1743244630976,0.7080571,83292.0,83291.0,0.00348024]
[1743244632378,0.3472571,83292.0,83291.0,0.00348024]
[1743244632583,0.7080571,83292.0,83291.0,0.00348024]
[1743244633374,0.7080571,83292.0,83291.0,0.10508024]
[1743244633984,0.7080571,83292.0,83291.0,0.00348024]
[1743244635983,0.1201229,83288.0,83287.0,0.0519]
[1743244636170,0.1216429,83288.0,83287.0,0.0519]
[1743244637185,0.1216429,83288.0,83287.0,0.0529]
[1743244637379,0.1760429,83288.0,83287.0,0.0529]
[1743244640877,0.1216429,83288.0,83287.0,0.0529]
[1743244642386,0.2451629,83288.0,83287.0,0.0529]
[1743244643275,0.2985629,83288.0,83287.0,0.0529]
[1743244646984,0.1201301,83283.0,83282.0,0.0541]
[1743244647189,0.1201316,83282.0,83281.0,0.0506]
[1743244647383,0.1748316,83282.0,83281.0,0.170733]
[1743244647589,0.1217316,83282.0,83281.0,0.170733]
[1743244648292,0.13084504,83282.0,83281.0,0.0506]
[1743244649287,0.18354504,83282.0,83281.0,0.0506]
[1743244650587,0.18354504,83282.0,83281.0,0.1022]
[1743244650994,0.18354504,83282.0,83281.0,0.222333]
[1743244651189,0.18354504,83282.0,83281.0,0.1022]
[1743244651988,0.23834504,83282.0,83281.0,0.1022]
[1743244652392,0.37436231,83282.0,83281.0,0.1022]
[1743244653098,0.37438324,83282.0,83281.0,0.1022]
[1743244653298,0.37438324,83282.0,83281.0,0.0506]
[1743244653900,0.73518324,83282.0,83281.0,0.1035]
[1743244654594,0.97518324,83282.0,83281.0,0.1035]
[1743244655098,0.92038324,83282.0,83281.0,0.1035]
[1743244655292,0.92238324,83282.0,83281.0,0.1035]
[1743244655693,0.92438324,83282.0,83281.0,0.1035]
[1743244657500,0.91182504,83282.0,83281.0,0.1035]
[1743244657701,0.92437057,83282.0,83281.0,0.1035]
[1743244658099,0.92437057,83282.0,83275.0,0.00048033]
[1743244658100,0.1201402,83276.0,83275.0,0.00048033]
[1743244658305,0.37421907,83276.0,83275.0,0.00048033]
[1743244658990,0.48071907,83276.0,83275.0,0.00048033]
[1743244659193,0.48071907,83276.0,83275.0,0.05388033]
[1743244659697,0.48171907,83276.0,83275.0,0.05388033]
[1743244661694,0.49128106,83276.0,83275.0,0.05388033]
[1743244662691,0.48171907,83276.0,83275.0,0.05388033]
[1743244663702,0.48182545,83276.0,83275.0,0.05388033]
[1743244666003,0.42712545,83276.0,83275.0,0.05388033]
[1743244667699,0.427111,83276.0,83275.0,0.05452033]
[1743244667894,0.427111,83276.0,83275.0,0.05388033]
[1743244668108,0.482211,83276.0,83275.0,0.05388033]
[1743244669405,0.482211,83276.0,83275.0,0.05452033]
[1743244669612,0.482211,83276.0,83275.0,0.05388033]
[1743244671001,0.843011,83276.0,83275.0,0.05388033]
[1743244672815,0.966451,83276.0,83275.0,0.05388033]
[1743244673808,0.97585565,83276.0,83275.0,0.05388033]
[1743244674616,1.11786533,83276.0,83275.0,0.05388033]
[1743244674812,1.10846068,83276.0,83275.0,0.05388033]
[1743244675317,1.09580988,83276.0,83275.0,0.05388033]
[1743244675519,1.04070988,83276.0,83275.0,0.05388033]
[1743244676112,1.04070988,83276.0,83275.0,0.05452033]
[1743244676515,0.91726988,83276.0,83275.0,0.05452033]
[1743244677228,0.4144602,83276.0,83275.0,0.05452033]
[1743244677424,0.4144602,83276.0,83275.0,0.05388033]
[1743244677624,0.3626602,83276.0,83275.0,0.17402203]
[1743244677815,0.3626602,83276.0,83275.0,0.26816203]
[1743244678018,0.1226602,83276.0,83275.0,0.26816203]
[1743244678220,0.3826602,83276.0,83275.0,0.14802033]
[1743244678621,0.7434602,83276.0,83275.0,0.10262033]
[1743244678926,0.3826602,83276.0,83275.0,0.10198033]
[1743244679126,0.3826602,83276.0,83275.0,0.10270033]
[1743244679326,0.4299602,83276.0,83275.0,0.10270033]
[1743244680825,0.4299602,83276.0,83275.0,0.10198033]
[1743244681024,0.4299602,83276.0,83275.0,0.10274033]
[1743244681932,0.1226602,83276.0,83275.0,0.22288203]
[1743244682531,0.1226602,83276.0,83275.0,0.27118203]
[1743244684423,0.1226602,83276.0,83275.0,0.55118203]
[1743244685527,0.00252,83276.0,83275.0,0.55118203]
[1743244685833,0.001,83276.0,83275.0,0.55118203]
[1743244686029,0.10727711,83278.0,83277.0,0.1201388]
[1743244686230,0.10727711,83278.0,83277.0,0.3707788]
[1743244686420,0.10891711,83278.0,83277.0,0.3707788]
[1743244686625,0.10727711,83278.0,83277.0,0.3707788]
[1743244686826,0.10891711,83278.0,83277.0,0.3707788]
[1743244687025,0.10991711,83278.0,83277.0,0.3707788]
[1743244687630,0.11091711,83278.0,83277.0,0.3707788]
[1743244687824,0.00364,83278.0,83277.0,0.3707788]
[1743244688029,0.002,83278.0,83277.0,0.65887507]
[1743244688230,0.002,83278.0,83277.0,0.40887507]
[1743244690826,0.2821373,83278.0,83277.0,0.28873627]
[1743244691038,0.29577566,83278.0,83277.0,0.28873627]
[1743244691227,0.22887566,83278.0,83277.0,0.40887507]
[1743244691425,0.09666001,83278.0,83277.0,0.40887507]
[1743244691640,0.1689373,83278.0,83277.0,0.40887507]
[1743244692243,0.1689373,83278.0,83277.0,0.1207788]
[1743244692244,0.0488,83278.0,83277.0,0.1207788]
[1743244692541,0.1689373,83278.0,83277.0,0.1207788]
[1743244692842,0.17049731,83278.0,83277.0,0.1207788]
[1743244693028,0.05036001,83278.0,83277.0,0.1207788]
[1743244693234,0.17049731,83278.0,83277.0,0.1207788]
[1743244698842,0.35049731,83278.0,83277.0,0.1207788]
[1743244699939,0.17049731,83278.0,83277.0,0.1207788]
[1743244705051,0.05036001,83278.0,83277.0,0.1207788]
[1743244705458,0.00356001,83278.0,83277.0,0.3507788]
[1743244705751,0.002,83278.0,83277.0,0.3507788]
[1743244707853,0.002,83278.0,83277.0,0.36287388]
[1743244708050,0.002,83278.0,83277.0,0.3507788]
[1743244709655,0.002,83278.0,83277.0,0.4399788]
[1743244710651,0.002,83278.0,83277.0,0.8007788]
[1743244711655,0.002,83278.0,83277.0,0.4399788]
[1743244711855,0.002,83278.0,83277.0,0.8007788]
[1743244713859,0.002,83278.0,83277.0,0.9240588]
[1743244714160,0.0446,83282.0,83281.0,0.120133]
[1743244714362,0.0446,83282.0,83281.0,0.200773]
[1743244715152,0.0446,83282.0,83281.0,0.290973]
[1743244715748,0.0486,83282.0,83281.0,0.290973]
[1743244716657,0.004,83282.0,83281.0,0.290973]
[1743244717053,0.0451,83288.0,83287.0,0.1201243]
[1743244717257,0.04666001,83288.0,83287.0,0.7215643]
[1743244717455,0.0451,83288.0,83287.0,0.7215643]
[1743244717666,0.0451,83288.0,83287.0,0.8107643]
[1743244718356,0.0481,83288.0,83287.0,0.8107643]
[1743244718755,0.0521,83288.0,83287.0,0.8107643]
[1743244719253,0.0521,83288.0,83287.0,0.5707643]
[1743244719458,0.05374,83288.0,83287.0,0.5707643]
[1743244719758,0.0521,83288.0,83287.0,0.5707643]
[1743244722663,0.0521,83288.0,83287.0,0.2099643]
[1743244722964,0.0521,83288.0,83287.0,0.5824844]
[1743244723666,0.00018009,83290.0,83287.0,0.8224844]
[1743244723852,0.10727711,83297.0,83296.0,0.1201114]
[1743244724053,0.10883712,83297.0,83296.0,0.4815514]
[1743244724256,0.10727711,83297.0,83296.0,0.4815514]
[1743244724461,0.17799986,83308.0,83301.0,0.0600518]
[1743244724661,0.17799986,83308.0,83307.0,0.1200955]
[1743244724662,0.17911987,83308.0,83307.0,0.1200955]
[1743244724863,0.17911987,83308.0,83307.0,0.1208155]
[1743244725661,0.17911987,83308.0,83307.0,0.2083155]
[1743244725861,0.18411987,83308.0,83307.0,0.2083155]
[1743244727158,0.18911987,83308.0,83307.0,0.2083155]
[1743244727672,0.13121411,83308.0,83307.0,0.2083155]
[1743244728263,0.01112001,83308.0,83307.0,0.2083155]
[1743244728660,0.01,83308.0,83307.0,0.2083155]
[1743244729467,0.0551,83308.0,83307.0,0.2083155]
[1743244730270,0.05622001,83308.0,83307.0,0.2083155]
[1743244730475,0.0551,83308.0,83307.0,0.2083155]
[1743244730661,0.05630001,83308.0,83307.0,0.2083155]
[1743244731366,0.0551,83308.0,83307.0,0.2083155]
[1743244731569,0.05626,83308.0,83307.0,0.2083155]
[1743244731870,0.09966,83308.0,83307.0,0.2083155]
[1743244736872,0.2197541,83308.0,83307.0,0.2083155]
[1743244738263,0.3897541,83308.0,83307.0,0.00072]
[1743244738567,0.7505541,83308.0,83307.0,0.1208155]
[1743244738971,0.7505541,83308.0,83307.0,0.1207355]
[1743244739176,0.3897541,83308.0,83307.0,0.1207355]
[1743244744178,0.3897541,83308.0,83307.0,0.1655355]
[1743244744373,0.2197541,83308.0,83307.0,0.1655355]
[1743244745775,0.4097541,83308.0,83307.0,0.00064]
[1743244745976,0.1201056,83301.0,83300.0,0.120105]
[1743244746279,0.1212656,83301.0,83300.0,0.120745]
[1743244746772,0.00116,83301.0,83300.0,0.209545]
[1743244746970,0.04726,83301.0,83300.0,0.252145]
[1743244747274,0.0461,83301.0,83300.0,0.252145]
[1743244747475,0.1662042,83301.0,83300.0,0.252145]
[1743244747686,0.17232421,83301.0,83300.0,0.252145]
[1743244748773,0.05722001,83301.0,83300.0,0.253145]
[1743244749677,0.1200919,83310.0,83309.0,0.1200926]
[1743244749875,0.1200919,83310.0,83309.0,0.1207326]
[1743244750069,0.1208519,83310.0,83309.0,0.1207326]
[1743244750672,0.1208519,83310.0,83309.0,0.2062326]
[1743244750873,0.1258519,83310.0,83309.0,0.2062326]
[1743244751575,0.1288519,83310.0,83309.0,0.2062326]
[1743244751982,0.1288519,83310.0,83309.0,0.1640326]
[1743244752186,0.2149519,83310.0,83309.0,0.1640326]
[1743244752484,0.4749519,83310.0,83309.0,0.00064]
[1743244752685,0.1201042,83301.0,83300.0,0.1201054]
[1743244752873,0.1208642,83301.0,83300.0,0.1207454]
[1743244753684,0.1648642,83301.0,83300.0,0.1207454]
[1743244754181,0.1648642,83301.0,83300.0,0.1631454]
[1743244754182,0.2083642,83301.0,83300.0,0.1631454]
[1743244754777,0.1643642,83301.0,83300.0,0.1631454]
[1743244754981,0.1673642,83301.0,83300.0,0.1631454]
[1743244755673,0.1663642,83301.0,83300.0,0.1631454]
[1743244756668,0.1663642,83301.0,83300.0,0.2088454]
[1743244756873,0.1228642,83301.0,83300.0,0.2088454]
[1743244758377,0.1664642,83301.0,83300.0,0.2088454]
[1743244759176,0.1228642,83301.0,83300.0,0.2088454]
[1743244759377,0.1228642,83301.0,83300.0,0.2535454]
[1743244760987,0.2928642,83301.0,83300.0,0.00064]
[1743244761187,0.3844642,83301.0,83300.0,0.1201056]
[1743244761380,0.3844642,83301.0,83300.0,0.1657456]
[1743244761581,0.4301642,83301.0,83300.0,0.1657456]
[1743244762286,0.3844642,83301.0,83300.0,0.1657456]
[1743244762587,0.04846,83301.0,83300.0,0.1657456]
[1743244762887,0.00276,83301.0,83300.0,0.47313496]
[1743244763275,0.00276,83301.0,83300.0,0.48313496]
[1743244763479,0.1801376,83313.0,83312.0,0.1200869]
[1743244763686,0.1808576,83313.0,83312.0,0.1200869]
[1743244763889,0.2274576,83313.0,83312.0,0.1207669]
[1743244764080,0.2274576,83313.0,83312.0,0.1214469]
[1743244764279,0.2274576,83313.0,83312.0,0.1207669]
[1743244764479,0.04732,83313.0,83312.0,0.1207669]
[1743244764887,0.05032,83313.0,83312.0,0.1207669]
[1743244765189,0.00372,83313.0,83312.0,0.1207669]
[1743244765388,0.00372,83313.0,83312.0,0.2143669]
[1743244765693,0.17799986,83326.0,83325.0,0.1200696]
[1743244765886,0.17799986,83326.0,83325.0,0.3010696]
[1743244766084,0.17891986,83326.0,83325.0,0.3010696]
[1743244766288,0.17891986,83326.0,83325.0,0.3479696]
[1743244766483,0.17891986,83326.0,83325.0,0.1679696]
[1743244766986,0.0004,83332.0,83331.0,0.1200609]
[1743244767287,0.00160001,83332.0,83331.0,0.1212609]
[1743244768176,0.00560001,83332.0,83331.0,0.1212609]
[1743244768381,0.00560001,83332.0,83331.0,0.3912609]
[1743244768587,0.0044,83332.0,83331.0,0.3912609]
[1743244772193,0.0044,83332.0,83331.0,0.1212609]
[1743244772393,0.0044,83332.0,83331.0,0.2443009]
[1743244773983,0.0044,83332.0,83331.0,0.1212609]
[1743244774187,0.00560001,83332.0,83331.0,0.1212609]
[1743244774391,0.0044,83332.0,83331.0,0.1212609]
[1743244774583,0.0044,83332.0,83331.0,0.1664609]
[1743244776590,0.0004,83332.0,83331.0,0.1664609]
[1743244776892,0.0004,83332.0,83331.0,0.1714609]
[1743244777591,0.0004,83332.0,83331.0,0.1704609]
[1743244778498,0.0004,83332.0,83331.0,0.5292609]
[1743244778692,0.0004,83332.0,83331.0,0.5312609]
[1743244781690,0.0469,83342.0,83338.0,0.0600252]
[1743244781895,0.04754,83342.0,83341.0,0.1200465]
[1743244782092,0.04754,83342.0,83341.0,0.1212465]
[1743244784397,0.04854,83342.0,83341.0,0.1212465]
[1743244784590,0.0479,83342.0,83341.0,0.1212465]
[1743244785095,0.0479,83342.0,83341.0,0.1645465]
[1743244785394,0.1679451,83342.0,83341.0,0.1645465]
[1743244785603,0.1691051,83342.0,83341.0,0.1645465]
[1743244791500,0.1691051,83342.0,83341.0,0.1212465]
[1743244794395,0.1691051,83342.0,83341.0,0.1659465]
[1743244796605,0.1691051,83342.0,83341.0,0.1212465]
[1743244798917,0.1691051,83342.0,83341.0,0.1665465]
[1743244800609,0.04906,83342.0,83341.0,0.1665465]
[1743244800911,0.1691051,83342.0,83341.0,0.1665465]
[1743244802514,0.1691051,83342.0,83341.0,0.42493586]
[1743244805514,0.04906,83342.0,83341.0,0.42493586]
[1743244805714,0.04906,83342.0,83341.0,0.78573586]
[1743244805919,0.0479,83342.0,83341.0,0.5698465]
[1743244806625,0.14270201,83349.0,83347.0,0.1200379]
[1743244806807,0.18530201,83349.0,83347.0,0.1211979]
[1743244807209,0.00156,83348.0,83347.0,0.1211979]
[1743244807420,0.00156,83348.0,83347.0,0.2060979]
[1743244808807,0.00356,83348.0,83347.0,0.21838002]
[1743244809222,0.00356,83348.0,83347.0,0.57918002]
[1743244810018,0.1029126,83356.0,83347.0,0.57918002]
[1743244810019,0.14270201,83360.0,83359.0,0.1200206]
[1743244810317,0.14270201,83360.0,83359.0,0.1215006]
[1743244810906,0.14270201,83360.0,83359.0,0.2071006]
[1743244812117,0.14370201,83360.0,83359.0,0.2071006]
[1743244815014,0.001,83360.0,83359.0,0.42272904]
[1743244818421,0.001,83360.0,83359.0,0.37932904]
[1743244819726,0.0857,83360.0,83359.0,0.37932904]
[1743244820324,0.0857,83360.0,83359.0,0.1637006]
[1743244820920,0.0857,83360.0,83359.0,0.2070006]
[1743244823024,0.2057191,83360.0,83359.0,0.1637006]
[1743244828427,0.2057191,83360.0,83359.0,0.04368]
[1743244828733,0.1200263,83355.0,83354.0,0.120027]
[1743244829033,0.1200263,83355.0,83354.0,0.121587]
[1743244829725,0.2053263,83355.0,83354.0,0.121587]
[1743244831030,0.1625263,83355.0,83354.0,0.121587]
[1743244831230,0.1635263,83355.0,83354.0,0.121587]
[1743244831625,0.1635263,83355.0,83354.0,0.165087]
[1743244832425,0.5243263,83355.0,83354.0,0.165087]
[1743244836737,0.5343263,83355.0,83354.0,0.165087]
[1743244843438,0.1735263,83355.0,83354.0,0.165087]
[1743244843638,0.5343263,83355.0,83354.0,0.165087]
[1743244849943,0.001,83355.0,83354.0,0.165087]
[1743244850145,0.14270201,83360.0,83359.0,0.1200206]
[1743244850335,0.14270201,83360.0,83359.0,0.1215006]
[1743244850541,0.1204136,83364.0,83359.0,0.1215006]
[1743244850542,0.1204136,83364.0,83363.0,0.1200148]
[1743244850748,0.1204136,83364.0,83363.0,0.3614948]
[1743244851347,0.1204136,83364.0,83363.0,0.4487948]
[1743244852739,0.1624136,83364.0,83363.0,0.4487948]
[1743244853436,0.1624136,83364.0,83363.0,0.32878]
[1743244853636,0.4124136,83364.0,83363.0,0.4487948]
[1743244853843,0.4540136,83364.0,83363.0,0.4487948]
[1743244857253,0.4124136,83364.0,83363.0,0.4487948]
[1743244858954,0.1624136,83364.0,83363.0,0.4487948]